[Event "December 5 Late 2023"]
[Site "https://www.chess.com"]
[Date "2023.12.05"]
[Round "2"]
[White "Topalov, Aleksandar"]
[Black "Joubert, Dantelle"]
[Result "1-0"]
[Board "171"]
[TimeControl "180+1"]
[WhiteFideId "925659"]
[BlackFideId "14310813"]
[WhiteElo "2439"]
[BlackElo "2151"]
[WhiteTeam "SRB"]
[BlackTeam "RSA"]
[WhiteClock "0:00:25"]
[BlackClock "0:00:21"]

1. b3 {[%clk 0:03:00]}  d5 {[%clk 0:02:55]} 2. Bb2 {[%clk 0:03:01]}  Nf6 {[%clk 0:02:55]} 3. Nf3 {[%clk 0:03:01]}  c6 {[%clk 0:02:53]} 4. g3 {[%clk 0:03:00]}  Bf5 {[%clk 0:02:49]} 5. Bg2 {[%clk 0:03:00]}  e6 {[%clk 0:02:49]} 6. O-O {[%clk 0:03:00]}  h6 {[%clk 0:02:49]} 7. d3 {[%clk 0:03:00]}  Nbd7 {[%clk 0:02:49]} 8. Nbd2 {[%clk 0:02:59]}  Be7 {[%clk 0:02:48]} 9. e4 {[%clk 0:02:52]}  dxe4 {[%clk 0:02:36]} 10. dxe4 {[%clk 0:02:52]}  Bh7 {[%clk 0:02:30]} 11. Qe2 {[%clk 0:02:51]}  O-O {[%clk 0:02:29]} 12. Rfd1 {[%clk 0:02:50]}  Qc7 {[%clk 0:02:26]} 13. a3 {[%clk 0:02:47]}  a5 {[%clk 0:02:24]} 14. e5 {[%clk 0:02:43]}  Nd5 {[%clk 0:02:22]} 15. Ne4 {[%clk 0:02:39]}  Nc5 {[%clk 0:02:14]} 16. Nd6 {[%clk 0:02:37]}  Rfd8 {[%clk 0:01:56]} 17. Rd2 {[%clk 0:02:26]}  f6 {[%clk 0:01:40]} 18. Rad1 {[%clk 0:02:24]}  fxe5 {[%clk 0:01:37]} 19. Nc4 {[%clk 0:02:15]}  e4 {[%clk 0:01:28]} 20. Nd4 {[%clk 0:02:14]}  e5 {[%clk 0:01:20]} 21. Nb5 {[%clk 0:01:10]}  cxb5 {[%clk 0:01:02]} 22. Rxd5 {[%clk 0:01:10]}  bxc4 {[%clk 0:00:55]} 23. Qxc4 {[%clk 0:01:09]}  Kh8 {[%clk 0:00:54]} 24. Bxe5 {[%clk 0:01:03]}  Qc6 {[%clk 0:00:27]} 25. Rxd8+ {[%clk 0:00:27]}  Rxd8 {[%clk 0:00:28]} 26. Rxd8+ {[%clk 0:00:27]}  Bxd8 {[%clk 0:00:26]} 27. Qf7 {[%clk 0:00:27]}  Bg8 {[%clk 0:00:21]} 28. Qxg7# {[%clk 0:00:25]} 1-0

[Event "December 5 Late 2023"]
[Site "https://www.chess.com"]
[Date "2023.12.05"]
[Round "2"]
[White "Travadon, Loic"]
[Black "Gatterer, Florian"]
[Result "1/2-1/2"]
[Board "172"]
[TimeControl "180+1"]
[WhiteFideId "26092131"]
[BlackFideId "811688"]
[WhiteElo "2144"]
[BlackElo "2429"]
[WhiteTeam "FRA"]
[BlackTeam "ITA"]
[WhiteClock "0:01:18"]
[BlackClock "0:00:15"]

1. e4 {[%clk 0:03:00]}  c5 {[%clk 0:03:00]} 2. Nf3 {[%clk 0:02:59]}  e6 {[%clk 0:03:00]} 3. Nc3 {[%clk 0:02:57]}  Nc6 {[%clk 0:02:59]} 4. Bb5 {[%clk 0:02:54]}  Nd4 {[%clk 0:02:59]} 5. Nxd4 {[%clk 0:02:53]}  cxd4 {[%clk 0:02:58]} 6. Ne2 {[%clk 0:02:54]}  Nf6 {[%clk 0:02:58]} 7. Bd3 {[%clk 0:02:51]}  d5 {[%clk 0:02:55]} 8. Ng3 {[%clk 0:02:48]}  Be7 {[%clk 0:02:46]} 9. O-O {[%clk 0:02:44]}  O-O {[%clk 0:02:45]} 10. f4 {[%clk 0:02:35]}  dxe4 {[%clk 0:02:39]} 11. Nxe4 {[%clk 0:02:34]}  Nxe4 {[%clk 0:02:39]} 12. Bxe4 {[%clk 0:02:35]}  g6 {[%clk 0:02:39]} 13. d3 {[%clk 0:02:33]}  Rb8 {[%clk 0:02:33]} 14. g4 {[%clk 0:02:30]}  Bd6 {[%clk 0:02:27]} 15. Qe2 {[%clk 0:02:16]}  f5 {[%clk 0:02:25]} 16. Bf3 {[%clk 0:02:14]}  Bd7 {[%clk 0:02:23]} 17. g5 {[%clk 0:02:10]}  Qc7 {[%clk 0:02:21]} 18. Qd2 {[%clk 0:02:07]}  Rfe8 {[%clk 0:02:14]} 19. Re1 {[%clk 0:02:06]}  Rbc8 {[%clk 0:02:03]} 20. Re2 {[%clk 0:02:03]}  Bc6 {[%clk 0:02:01]} 21. Bxc6 {[%clk 0:01:58]}  Qxc6 {[%clk 0:02:02]} 22. a3 {[%clk 0:01:53]}  Re7 {[%clk 0:01:35]} 23. b4 {[%clk 0:01:52]}  e5 {[%clk 0:01:35]} 24. Bb2 {[%clk 0:01:44]}  Rce8 {[%clk 0:01:17]} 25. Rae1 {[%clk 0:01:38]}  exf4 {[%clk 0:01:01]} 26. Rxe7 {[%clk 0:01:34]}  Rxe7 {[%clk 0:01:01]} 27. Rxe7 {[%clk 0:01:35]}  Bxe7 {[%clk 0:01:01]} 28. Qxf4 {[%clk 0:01:35]}  Qxc2 {[%clk 0:00:43]} 29. Qxd4 {[%clk 0:01:34]}  Qd1+ {[%clk 0:00:37]} 30. Kg2 {[%clk 0:01:27]}  Qe2+ {[%clk 0:00:29]} 31. Kg1 {[%clk 0:01:25]}  Qd1+ {[%clk 0:00:22]} 32. Kg2 {[%clk 0:01:24]}  Qd2+ {[%clk 0:00:22]} 33. Kh1 {[%clk 0:01:18]}  Qd1+ {[%clk 0:00:15]} 1/2-1/2

[Event "December 5 Late 2023"]
[Site "https://www.chess.com"]
[Date "2023.12.05"]
[Round "2"]
[White "Nilsson, Joakim"]
[Black "Estevez Polanco, Leonardo Rafael"]
[Result "1-0"]
[Board "173"]
[TimeControl "180+1"]
[WhiteFideId "1723383"]
[BlackFideId "6402798"]
[WhiteElo "2429"]
[BlackElo "2142"]
[WhiteTeam "SWE"]
[BlackTeam "DOM"]
[WhiteClock "0:02:11"]
[BlackClock "0:00:17"]

1. d4 {[%clk 0:02:59]}  Nf6 {[%clk 0:02:48]} 2. Bg5 {[%clk 0:02:57]}  c5 {[%clk 0:02:47]} 3. Bxf6 {[%clk 0:02:54]}  gxf6 {[%clk 0:02:48]} 4. e3 {[%clk 0:02:55]}  Bg7 {[%clk 0:02:48]} 5. c3 {[%clk 0:02:55]}  O-O {[%clk 0:02:48]} 6. Nd2 {[%clk 0:02:55]}  cxd4 {[%clk 0:02:46]} 7. exd4 {[%clk 0:02:55]}  e6 {[%clk 0:02:46]} 8. Bd3 {[%clk 0:02:55]}  f5 {[%clk 0:02:46]} 9. Ne2 {[%clk 0:02:53]}  b6 {[%clk 0:02:46]} 10. g4 {[%clk 0:02:51]}  fxg4 {[%clk 0:02:44]} 11. Rg1 {[%clk 0:02:52]}  f5 {[%clk 0:02:40]} 12. Nc4 {[%clk 0:02:42]}  Bb7 {[%clk 0:02:32]} 13. Qd2 {[%clk 0:02:41]}  Qh4 {[%clk 0:02:29]} 14. O-O-O {[%clk 0:02:40]}  Bh6 {[%clk 0:02:24]} 15. f4 {[%clk 0:02:38]}  Bf3 {[%clk 0:02:03]} 16. Ne5 {[%clk 0:02:33]}  Bxe2 {[%clk 0:01:48]} 17. Bxe2 {[%clk 0:02:34]}  Bg7 {[%clk 0:00:59]} 18. Bxg4 {[%clk 0:02:28]}  fxg4 {[%clk 0:00:56]} 19. Rxg4 {[%clk 0:02:28]}  Qf6 {[%clk 0:00:50]} 20. Rdg1 {[%clk 0:02:28]}  d6 {[%clk 0:00:48]} 21. Rxg7+ {[%clk 0:02:16]}  Qxg7 {[%clk 0:00:20]} 22. Rxg7+ {[%clk 0:02:16]}  Kxg7 {[%clk 0:00:20]} 23. Qg2+ {[%clk 0:02:12]}  Kh8 {[%clk 0:00:20]} 24. Qxa8 {[%clk 0:02:13]}  dxe5 {[%clk 0:00:19]} 25. dxe5 {[%clk 0:02:14]}  a5 {[%clk 0:00:17]} 26. Qb7 {[%clk 0:02:14]}  h6 {[%clk 0:00:17]} 27. h4 {[%clk 0:02:11]} 1-0

[Event "December 5 Late 2023"]
[Site "https://www.chess.com"]
[Date "2023.12.05"]
[Round "2"]
[White "Federzoni, Enzo"]
[Black "Jesusesmifuerza"]
[Result "0-1"]
[Board "177"]
[TimeControl "180+1"]
[WhiteFideId "2173301"]
[WhiteElo "2415"]
[BlackElo "2106"]
[WhiteTeam "BRA"]
[WhiteClock "0:01:52"]
[BlackClock "0:01:44"]

1. d4 {[%clk 0:03:00]}  d5 {[%clk 0:02:53]} 2. Nc3 {[%clk 0:03:00]}  Nf6 {[%clk 0:02:52]} 3. Bf4 {[%clk 0:03:00]}  e6 {[%clk 0:02:52]} 4. e3 {[%clk 0:02:59]}  Bd6 {[%clk 0:02:51]} 5. Nf3 {[%clk 0:02:56]}  O-O {[%clk 0:02:50]} 6. Bd3 {[%clk 0:02:54]}  Nbd7 {[%clk 0:02:46]} 7. O-O {[%clk 0:02:51]}  Qe7 {[%clk 0:02:44]} 8. Bg3 {[%clk 0:02:48]}  a6 {[%clk 0:02:43]} 9. Ne5 {[%clk 0:02:48]}  c5 {[%clk 0:02:43]} 10. Nxd7 {[%clk 0:02:41]}  Bxd7 {[%clk 0:02:36]} 11. dxc5 {[%clk 0:02:42]}  Bxc5 {[%clk 0:02:26]} 12. Ne2 {[%clk 0:02:41]}  e5 {[%clk 0:02:24]} 13. c3 {[%clk 0:02:38]}  Rad8 {[%clk 0:02:22]} 14. Qb3 {[%clk 0:02:33]}  Bc6 {[%clk 0:02:19]} 15. Rfd1 {[%clk 0:02:30]}  d4 {[%clk 0:02:18]} 16. cxd4 {[%clk 0:02:24]}  exd4 {[%clk 0:02:18]} 17. exd4 {[%clk 0:02:23]}  Ba7 {[%clk 0:02:02]} 18. Re1 {[%clk 0:02:12]}  Bd5 {[%clk 0:01:59]} 19. Qc2 {[%clk 0:02:05]}  Rc8 {[%clk 0:01:48]} 20. Qd2 {[%clk 0:02:04]}  Ne4 {[%clk 0:01:44]} 21. Bxe4 {[%clk 0:02:01]}  Qxe4 {[%clk 0:01:45]} 22. Nc3 {[%clk 0:01:52]}  Qxg2# {[%clk 0:01:44]} 0-1

[Event "December 5 Late 2023"]
[Site "https://www.chess.com"]
[Date "2023.12.05"]
[Round "2"]
[White "Oliveira, Tiago Batista"]
[Black "Blanco Diez, David"]
[Result "0-1"]
[Board "180"]
[TimeControl "180+1"]
[WhiteFideId "2108291"]
[BlackFideId "32032927"]
[WhiteElo "2085"]
[BlackElo "2412"]
[WhiteTeam "BRA"]
[BlackTeam "ESP"]
[WhiteClock "0:00:03"]
[BlackClock "0:00:12"]

1. d4 {[%clk 0:02:59]}  g6 {[%clk 0:02:59]} 2. c4 {[%clk 0:02:59]}  Bg7 {[%clk 0:03:00]} 3. Nf3 {[%clk 0:02:59]}  d6 {[%clk 0:02:59]} 4. Nc3 {[%clk 0:02:58]}  c5 {[%clk 0:03:00]} 5. d5 {[%clk 0:02:57]}  Bxc3+ {[%clk 0:03:01]} 6. bxc3 {[%clk 0:02:57]}  e5 {[%clk 0:03:01]} 7. e4 {[%clk 0:02:56]}  Qe7 {[%clk 0:03:00]} 8. Bd3 {[%clk 0:02:49]}  Nd7 {[%clk 0:02:56]} 9. O-O {[%clk 0:02:49]}  Ngf6 {[%clk 0:02:47]} 10. Re1 {[%clk 0:02:44]}  h6 {[%clk 0:02:43]} 11. Rb1 {[%clk 0:02:35]}  g5 {[%clk 0:02:23]} 12. Bf1 {[%clk 0:01:50]}  Nf8 {[%clk 0:02:17]} 13. Qa4+ {[%clk 0:01:27]}  Qd7 {[%clk 0:01:48]} 14. Qc2 {[%clk 0:01:23]}  Ng6 {[%clk 0:01:47]} 15. g3 {[%clk 0:01:21]}  g4 {[%clk 0:01:41]} 16. Nd2 {[%clk 0:01:18]}  h5 {[%clk 0:01:41]} 17. Bg2 {[%clk 0:01:18]}  h4 {[%clk 0:01:40]} 18. Nf1 {[%clk 0:01:14]}  Qe7 {[%clk 0:01:32]} 19. Bg5 {[%clk 0:01:12]}  Rh5 {[%clk 0:01:24]} 20. Qd2 {[%clk 0:01:08]}  h3 {[%clk 0:01:16]} 21. Bh1 {[%clk 0:01:07]}  Nf8 {[%clk 0:01:16]} 22. f4 {[%clk 0:01:03]}  N8h7 {[%clk 0:01:08]} 23. Bxf6 {[%clk 0:00:25]}  Qxf6 {[%clk 0:01:04]} 24. fxe5 {[%clk 0:00:24]}  Rxe5 {[%clk 0:01:02]} 25. Ne3 {[%clk 0:00:23]}  Ng5 {[%clk 0:01:02]} 26. Rf1 {[%clk 0:00:22]}  Qe7 {[%clk 0:01:01]} 27. Nf5 {[%clk 0:00:20]}  Bxf5 {[%clk 0:01:00]} 28. exf5 {[%clk 0:00:20]}  f6 {[%clk 0:00:54]} 29. Rbe1 {[%clk 0:00:18]}  O-O-O {[%clk 0:00:29]} 30. Rxe5 {[%clk 0:00:17]}  Qxe5 {[%clk 0:00:29]} 31. Qf4 {[%clk 0:00:15]}  Re8 {[%clk 0:00:21]} 32. Qxe5 {[%clk 0:00:14]}  Rxe5 {[%clk 0:00:22]} 33. Kf2 {[%clk 0:00:12]}  Ne4+ {[%clk 0:00:20]} 34. Bxe4 {[%clk 0:00:12]}  Rxe4 {[%clk 0:00:21]} 35. Re1 {[%clk 0:00:12]}  Rxc4 {[%clk 0:00:18]} 36. Re6 {[%clk 0:00:10]}  Rxc3 {[%clk 0:00:18]} 37. Rxf6 {[%clk 0:00:10]}  Rc2+ {[%clk 0:00:18]} 38. Ke3 {[%clk 0:00:10]}  Rxh2 {[%clk 0:00:18]} 39. Rxd6 {[%clk 0:00:10]}  Rg2 {[%clk 0:00:16]} 40. Kf4 {[%clk 0:00:09]}  c4 {[%clk 0:00:12]} 41. Rh6 {[%clk 0:00:09]}  c3 {[%clk 0:00:12]} 42. f6 {[%clk 0:00:09]}  c2 {[%clk 0:00:12]} 43. Kxg4 {[%clk 0:00:08]}  c1=Q {[%clk 0:00:12]} 44. f7 {[%clk 0:00:03]}  Qxh6 {[%clk 0:00:12]} 0-1

[Event "December 5 Late 2023"]
[Site "https://www.chess.com"]
[Date "2023.12.05"]
[Round "2"]
[White "Bochnicka, Vladimir"]
[Black "Feliz Dotel, Dewar Bienvenido"]
[Result "1-0"]
[Board "182"]
[TimeControl "180+1"]
[WhiteFideId "14943450"]
[BlackFideId "6402801"]
[WhiteElo "2411"]
[BlackElo "2076"]
[WhiteTeam "SVK"]
[BlackTeam "DOM"]
[WhiteClock "0:01:14"]
[BlackClock "0:00:00"]

1. e4 {[%clk 0:03:00]}  e5 {[%clk 0:02:59]} 2. Nf3 {[%clk 0:03:00]}  Nc6 {[%clk 0:02:58]} 3. Bc4 {[%clk 0:02:59]}  Nf6 {[%clk 0:02:58]} 4. d3 {[%clk 0:03:00]}  Be7 {[%clk 0:02:56]} 5. O-O {[%clk 0:02:59]}  O-O {[%clk 0:02:56]} 6. Re1 {[%clk 0:03:00]}  d6 {[%clk 0:02:56]} 7. a4 {[%clk 0:03:00]}  Na5 {[%clk 0:02:50]} 8. Ba2 {[%clk 0:02:59]}  c5 {[%clk 0:02:49]} 9. c3 {[%clk 0:02:58]}  Nc6 {[%clk 0:02:49]} 10. Na3 {[%clk 0:02:58]}  h6 {[%clk 0:02:48]} 11. Bd2 {[%clk 0:02:59]}  Re8 {[%clk 0:02:43]} 12. b4 {[%clk 0:02:59]}  cxb4 {[%clk 0:02:39]} 13. cxb4 {[%clk 0:03:00]}  d5 {[%clk 0:02:33]} 14. b5 {[%clk 0:02:55]}  Nb4 {[%clk 0:02:33]} 15. Bb1 {[%clk 0:02:35]}  dxe4 {[%clk 0:02:30]} 16. dxe4 {[%clk 0:02:35]}  Nd3 {[%clk 0:02:24]} 17. Re3 {[%clk 0:02:28]}  Nf4 {[%clk 0:02:20]} 18. Nc4 {[%clk 0:02:14]}  Bc5 {[%clk 0:02:11]} 19. Re1 {[%clk 0:02:07]}  Bg4 {[%clk 0:01:17]} 20. Ncxe5 {[%clk 0:01:40]}  Rxe5 {[%clk 0:01:12]} 21. Bxf4 {[%clk 0:01:40]}  Qxd1 {[%clk 0:00:22]} 22. Rxd1 {[%clk 0:01:41]}  Nxe4 {[%clk 0:00:21]} 23. Bxe5 {[%clk 0:01:32]}  Nxf2 {[%clk 0:00:21]} 24. Bd4 {[%clk 0:01:33]}  Bxf3 {[%clk 0:00:11]} 25. Bxc5 {[%clk 0:01:22]}  Nxd1 {[%clk 0:00:04]} 26. gxf3 {[%clk 0:01:22]}  Nc3 {[%clk 0:00:04]} 27. Bd3 {[%clk 0:01:21]}  b6 {[%clk 0:00:04]} 28. Bf2 {[%clk 0:01:21]}  Rd8 {[%clk 0:00:04]} 29. Bf1 {[%clk 0:01:17]}  Nd5 {[%clk 0:00:02]} 30. Rd1 {[%clk 0:01:16]}  Rd7 {[%clk 0:00:01]} 31. Bc4 {[%clk 0:01:16]}  Nf6 {[%clk 0:00:01]} 32. Rxd7 {[%clk 0:01:16]}  Nxd7 {[%clk 0:00:02]} 33. Bd5 {[%clk 0:01:16]}  Kf8 {[%clk 0:00:00]} 34. a5 {[%clk 0:01:14]} 1-0

[Event "December 5 Late 2023"]
[Site "https://www.chess.com"]
[Date "2023.12.05"]
[Round "2"]
[White "Mesquita, Eduardo Barbosa"]
[Black "Monteiro, Luis Felipe Furtado"]
[Result "1-0"]
[Board "188"]
[TimeControl "180+1"]
[WhiteFideId "22757163"]
[BlackFideId "22702806"]
[WhiteElo "2400"]
[BlackElo "2004"]
[WhiteTeam "BRA"]
[BlackTeam "BRA"]
[WhiteClock "0:01:26"]
[BlackClock "0:00:46"]

1. e4 {[%clk 0:03:00]}  c6 {[%clk 0:02:58]} 2. Nf3 {[%clk 0:03:00]}  d5 {[%clk 0:02:58]} 3. e5 {[%clk 0:03:01]}  c5 {[%clk 0:02:58]} 4. d4 {[%clk 0:03:01]}  Nc6 {[%clk 0:02:58]} 5. c3 {[%clk 0:03:01]}  Bg4 {[%clk 0:02:58]} 6. Be2 {[%clk 0:03:02]}  e6 {[%clk 0:02:59]} 7. Nbd2 {[%clk 0:03:02]}  Nge7 {[%clk 0:02:59]} 8. O-O {[%clk 0:03:03]}  cxd4 {[%clk 0:02:58]} 9. cxd4 {[%clk 0:02:59]}  Nf5 {[%clk 0:02:58]} 10. Re1 {[%clk 0:02:59]}  Be7 {[%clk 0:02:51]} 11. a3 {[%clk 0:02:58]}  Qb6 {[%clk 0:02:51]} 12. Kh1 {[%clk 0:02:53]}  O-O {[%clk 0:02:41]} 13. h3 {[%clk 0:02:53]}  Bxf3 {[%clk 0:02:41]} 14. Nxf3 {[%clk 0:02:54]}  Rac8 {[%clk 0:02:33]} 15. g4 {[%clk 0:02:50]}  Nh4 {[%clk 0:02:32]} 16. b4 {[%clk 0:02:45]}  Nxf3 {[%clk 0:02:31]} 17. Bxf3 {[%clk 0:02:45]}  Qxd4 {[%clk 0:02:31]} 18. Be3 {[%clk 0:02:27]}  Qxd1 {[%clk 0:02:28]} 19. Raxd1 {[%clk 0:02:28]}  Nxe5 {[%clk 0:02:26]} 20. Be2 {[%clk 0:02:15]}  Nc6 {[%clk 0:02:18]} 21. f4 {[%clk 0:02:11]}  a6 {[%clk 0:02:14]} 22. f5 {[%clk 0:02:09]}  Bf6 {[%clk 0:02:13]} 23. g5 {[%clk 0:02:08]}  Bb2 {[%clk 0:02:09]} 24. Bc5 {[%clk 0:02:05]}  Rfe8 {[%clk 0:02:03]} 25. b5 {[%clk 0:02:06]}  axb5 {[%clk 0:02:02]} 26. Bxb5 {[%clk 0:02:07]}  Bc3 {[%clk 0:01:51]} 27. Rf1 {[%clk 0:02:06]}  Red8 {[%clk 0:01:44]} 28. Rd3 {[%clk 0:01:57]}  Be5 {[%clk 0:01:37]} 29. Re3 {[%clk 0:01:47]}  Bd4 {[%clk 0:01:29]} 30. Bxd4 {[%clk 0:01:39]}  Nxd4 {[%clk 0:01:30]} 31. Bd3 {[%clk 0:01:38]}  Rc3 {[%clk 0:01:26]} 32. fxe6 {[%clk 0:01:37]}  Rxd3 {[%clk 0:01:20]} 33. exf7+ {[%clk 0:01:36]}  Kf8 {[%clk 0:01:21]} 34. Rxd3 {[%clk 0:01:37]}  Ne6 {[%clk 0:01:20]} 35. Rg3 {[%clk 0:01:29]}  d4 {[%clk 0:01:18]} 36. g6 {[%clk 0:01:27]}  hxg6 {[%clk 0:01:14]} 37. Rxg6 {[%clk 0:01:27]}  Nc5 {[%clk 0:01:08]} 38. h4 {[%clk 0:01:27]}  d3 {[%clk 0:01:08]} 39. h5 {[%clk 0:01:28]}  Rd5 {[%clk 0:00:59]} 40. Rxg7 {[%clk 0:01:25]}  Rxh5+ {[%clk 0:00:58]} 41. Kg2 {[%clk 0:01:25]}  Ne6 {[%clk 0:00:49]} 42. Rg8+ {[%clk 0:01:26]}  Ke7 {[%clk 0:00:46]} 43. Re8+ {[%clk 0:01:26]} 1-0

[Event "December 5 Late 2023"]
[Site "https://www.chess.com"]
[Date "2023.12.05"]
[Round "2"]
[White "Uryupin, Igor"]
[Black "Boggiano Pereira, Miguel A."]
[Result "1-0"]
[Board "190"]
[TimeControl "180+1"]
[WhiteFideId "4182529"]
[BlackFideId "3102750"]
[WhiteElo "2395"]
[BlackElo "1979"]
[WhiteTeam "RUS"]
[BlackTeam "PUR"]
[WhiteClock "0:02:44"]
[BlackClock "0:01:56"]

1. d4 {[%clk 0:02:59]}  Nf6 {[%clk 0:02:59]} 2. Nf3 {[%clk 0:02:59]}  d5 {[%clk 0:02:58]} 3. Bf4 {[%clk 0:02:59]}  c5 {[%clk 0:02:58]} 4. e3 {[%clk 0:02:58]}  Nc6 {[%clk 0:02:57]} 5. c3 {[%clk 0:02:58]}  Qb6 {[%clk 0:02:57]} 6. Qb3 {[%clk 0:02:57]}  c4 {[%clk 0:02:57]} 7. Qc2 {[%clk 0:02:57]}  Bf5 {[%clk 0:02:56]} 8. Qc1 {[%clk 0:02:51]}  h6 {[%clk 0:02:48]} 9. Nbd2 {[%clk 0:02:50]}  e6 {[%clk 0:02:42]} 10. Be2 {[%clk 0:02:49]}  Be7 {[%clk 0:02:41]} 11. O-O {[%clk 0:02:49]}  O-O {[%clk 0:02:39]} 12. b4 {[%clk 0:02:49]}  cxb3 {[%clk 0:02:21]} 13. axb3 {[%clk 0:02:48]}  Rfc8 {[%clk 0:02:21]} 14. Qb2 {[%clk 0:02:44]}  Qa6 {[%clk 0:01:56]} 1-0

[Event "December 5 Late 2023"]
[Site "https://www.chess.com"]
[Date "2023.12.05"]
[Round "2"]
[White "Thake, Conrad"]
[Black "Su, Dion"]
[Result "1-0"]
[Board "193"]
[TimeControl "180+1"]
[WhiteFideId "5602947"]
[BlackFideId "2029731"]
[WhiteElo "1929"]
[BlackElo "2391"]
[WhiteTeam "MLT"]
[BlackTeam "USA"]
[WhiteClock "0:00:07"]
[BlackClock "0:00:00"]

1. e4 {[%clk 0:02:27]}  e6 {[%clk 0:02:59]} 2. d4 {[%clk 0:02:27]}  d5 {[%clk 0:02:59]} 3. Nc3 {[%clk 0:02:27]}  Nf6 {[%clk 0:03:00]} 4. Bg5 {[%clk 0:02:26]}  Be7 {[%clk 0:03:00]} 5. e5 {[%clk 0:02:26]}  Nfd7 {[%clk 0:03:00]} 6. Bxe7 {[%clk 0:02:26]}  Qxe7 {[%clk 0:03:00]} 7. f4 {[%clk 0:02:27]}  O-O {[%clk 0:03:01]} 8. Nf3 {[%clk 0:02:27]}  c5 {[%clk 0:03:01]} 9. Ne2 {[%clk 0:02:22]}  cxd4 {[%clk 0:03:01]} 10. Nexd4 {[%clk 0:02:22]}  Nc6 {[%clk 0:03:01]} 11. c3 {[%clk 0:02:22]}  f6 {[%clk 0:03:01]} 12. exf6 {[%clk 0:02:20]}  Nxf6 {[%clk 0:03:00]} 13. Bd3 {[%clk 0:02:06]}  Ne4 {[%clk 0:02:56]} 14. Qc1 {[%clk 0:02:01]}  Nxd4 {[%clk 0:02:47]} 15. cxd4 {[%clk 0:02:00]}  Qb4+ {[%clk 0:02:47]} 16. Ke2 {[%clk 0:01:50]}  Bd7 {[%clk 0:02:41]} 17. a3 {[%clk 0:01:48]}  Qb6 {[%clk 0:02:36]} 18. Ne5 {[%clk 0:01:43]}  Be8 {[%clk 0:02:24]} 19. Bxe4 {[%clk 0:01:37]}  dxe4 {[%clk 0:02:23]} 20. Ke3 {[%clk 0:01:33]}  Rd8 {[%clk 0:02:13]} 21. Qc3 {[%clk 0:01:25]}  Bc6 {[%clk 0:02:02]} 22. g3 {[%clk 0:01:19]}  Bd5 {[%clk 0:02:01]} 23. Rac1 {[%clk 0:01:12]}  h6 {[%clk 0:01:41]} 24. b4 {[%clk 0:00:58]}  Qa6 {[%clk 0:01:21]} 25. Qb2 {[%clk 0:00:46]}  Rf5 {[%clk 0:01:14]} 26. Rc3 {[%clk 0:00:44]}  g5 {[%clk 0:01:10]} 27. Qf2 {[%clk 0:00:30]}  Rdf8 {[%clk 0:01:03]} 28. Rg1 {[%clk 0:00:19]}  Bc6 {[%clk 0:00:39]} 29. h4 {[%clk 0:00:16]}  Qb6 {[%clk 0:00:33]} 30. Rc5 {[%clk 0:00:15]}  a5 {[%clk 0:00:27]} 31. hxg5 {[%clk 0:00:15]}  axb4 {[%clk 0:00:26]} 32. Qh2 {[%clk 0:00:13]}  bxa3 {[%clk 0:00:20]} 33. Qxh6 {[%clk 0:00:13]}  Qb3+ {[%clk 0:00:13]} 34. Kf2 {[%clk 0:00:14]}  Rxf4+ {[%clk 0:00:13]} 35. gxf4 {[%clk 0:00:12]}  Rxf4+ {[%clk 0:00:13]} 36. Kg2 {[%clk 0:00:12]}  e3+ {[%clk 0:00:09]} 37. Kh2 {[%clk 0:00:09]}  Qb2+ {[%clk 0:00:08]} 38. Kh3 {[%clk 0:00:09]}  Qf2 {[%clk 0:00:02]} 39. Qxe6+ {[%clk 0:00:08]}  Kg7 {[%clk 0:00:02]} 40. Qg6+ {[%clk 0:00:08]}  Kf8 {[%clk 0:00:00]} 41. Qh6+ {[%clk 0:00:07]} 1-0

[Event "December 5 Late 2023"]
[Site "https://www.chess.com"]
[Date "2023.12.05"]
[Round "3"]
[White "Carlsen, Magnus"]
[Black "Shuvalova, Polina"]
[Result "1-0"]
[Board "1"]
[TimeControl "180+1"]
[WhiteFideId "1503014"]
[BlackFideId "24171760"]
[WhiteElo "3308"]
[BlackElo "2847"]
[WhiteTeam "NOR"]
[BlackTeam "RUS"]
[WhiteClock "0:02:14"]
[BlackClock "0:00:17"]

1. e4 {[%clk 0:02:59]}  c6 {[%clk 0:02:59]} 2. Ne2 {[%clk 0:02:55]}  d5 {[%clk 0:03:00]} 3. e5 {[%clk 0:02:55]}  Bf5 {[%clk 0:02:56]} 4. Ng3 {[%clk 0:02:53]}  Bg6 {[%clk 0:02:57]} 5. h4 {[%clk 0:02:52]}  h6 {[%clk 0:02:55]} 6. h5 {[%clk 0:02:52]}  Bh7 {[%clk 0:02:56]} 7. e6 {[%clk 0:02:52]}  fxe6 {[%clk 0:02:54]} 8. d4 {[%clk 0:02:52]}  Nf6 {[%clk 0:02:48]} 9. Bd3 {[%clk 0:02:51]}  Bxd3 {[%clk 0:02:42]} 10. Qxd3 {[%clk 0:02:51]}  Na6 {[%clk 0:02:31]} 11. Nd2 {[%clk 0:02:49]}  Qb6 {[%clk 0:02:21]} 12. Qg6+ {[%clk 0:02:48]}  Kd7 {[%clk 0:02:20]} 13. Nf3 {[%clk 0:02:49]}  Qb5 {[%clk 0:01:33]} 14. a4 {[%clk 0:02:48]}  Qb4+ {[%clk 0:01:33]} 15. c3 {[%clk 0:02:48]}  Qb3 {[%clk 0:01:22]} 16. Ne5+ {[%clk 0:02:47]}  Kc7 {[%clk 0:01:22]} 17. O-O {[%clk 0:02:48]}  b6 {[%clk 0:01:12]} 18. Qf7 {[%clk 0:02:41]}  Rd8 {[%clk 0:01:03]} 19. a5 {[%clk 0:02:40]}  b5 {[%clk 0:00:56]} 20. Bf4 {[%clk 0:02:38]}  Kb7 {[%clk 0:00:55]} 21. Qxe6 {[%clk 0:02:37]}  Rd6 {[%clk 0:00:54]} 22. Qf7 {[%clk 0:02:37]}  Nc7 {[%clk 0:00:39]} 23. a6+ {[%clk 0:02:35]}  Kb6 {[%clk 0:00:37]} 24. Nf5 {[%clk 0:02:26]}  Qc2 {[%clk 0:00:30]} 25. Nxd6 {[%clk 0:02:18]}  exd6 {[%clk 0:00:31]} 26. Qxf6 {[%clk 0:02:15]}  dxe5 {[%clk 0:00:29]} 27. Qxe5 {[%clk 0:02:15]}  Nxa6 {[%clk 0:00:17]} 28. Rxa6+ {[%clk 0:02:14]}  Kxa6 {[%clk 0:00:17]} 29. Ra1+ {[%clk 0:02:14]} 1-0